[Event "FIDE WCCC U8 2018"]
[Site "Santiago de Compostela"]
[Date "2018.11.11"]
[Round "7"]
[White "Lu, Miaoyi"]
[Black "Chen, Ryo"]
[Result "1/2-1/2"]
[ECO "E62"]
[WhiteElo "1717"]
[BlackElo "1573"]
[Annotator "NA RC"]
[PlyCount "111"]
[EventDate "2018.11.04"]
[EventType "swiss"]
[EventCountry "ESP"]
[SourceTitle "playchess.com"]
[Source "ChessBase"]
[SourceQuality "1"]
[TimeControl "40/5400+30:1800+30"]

1. d4 {[%emt 0:00:00]} Nf6 {[%emt 0:00:00]} 2. c4 {[%emt 0:00:00]} g6 {[%emt 0:00:00]} 3. g3 {[%emt 0:00:00]} Bg7 {[%emt 0:00:03]} 4. Bg2 {[%emt 0:00:00]} O-O {[%emt 0:00:16]} 5. Nc3 {[%emt 0:00:11]} d6 {[%emt 0:00:13]} 6. Nf3 {[%emt 0:00:08]} Nc6 {[%emt 0:00:16]} 7. O-O {[%emt 0:00:10]} Bg4 {[%emt 0:00:06]} 8. d5 {[%emt 0:00:10]} Na5 {[%emt 0:00:29]} 9. Qd3 {[%emt 0:00:15]} c5 {[%emt 0:00:17]} 10. Nd2 {[%emt 0:00:17]} a6 {[%emt 0:00:30]} 11. b3 {[%emt 0:00:32]} b5 {[%emt 0:00:26]} 12. Rb1 {[%emt 0:04:12]} bxc4 {[%emt 0:08:38]} 13. bxc4 {[%emt 0:00:13]} Qc7 {[%emt 0:01:24]} 14. Bb2 {[%emt 0:02:54]} Rab8 {[%emt 0:01:28]} 15. Ba1 {[%emt 0:03:25]} Bf5 {[%emt 0:02:44]} 16. e4 {[%emt 0:00:40]} Bd7 {[%emt 0:00:30]} 17. Ne2 {[%emt 0:05:17]} Rb4 {[%emt 0:17:11]} 18. Bc3 {[%emt 0:07:15]} Ra4 {[%emt 0:00:54]} 19. Rb2 {[%emt 0:02:42]} Rb8 {[%emt 0:04:48]} 20. Rxb8+ {[%emt 0:04:31]} Qxb8 {[%emt 0:00:12]} 21. Rb1 {[%emt 0:00:13]} Qc7 {[%emt 0:00:23]} 22. Rb2 {[%emt 0:00:33]} Nxc4 {[%emt 0:14:43]} 23. Nxc4 {[%emt 0:02:54]} Bb5 {[%emt 0:00:23]} 24. Rxb5 {[%emt 0:14:01]} axb5 {[%emt 0:00:28]} 25. Nb2 {[%emt 0:01:03]} Rxa2 {[%emt 0:00:28]} 26. Qxb5 {[%emt 0:01:39]} Ra1+ {[%emt 0:00:27]} 27. Bf1 {[%emt 0:00:11]} Nxe4 {[%emt 0:00:34]} 28. Bxg7 {[%emt 0:00:38]} Kxg7 {[%emt 0:00:30]} 29. Nc4 {[%emt 0:03:09]} Nf6 {[%emt 0:01:51]} 30. Nf4 {[%emt 0:06:09]} Rd1 {[%emt 0:03:59]} 31. Ne3 {[%emt 0:03:54]} Ra1 {[%emt 0:01:45]} 32. Nc4 {[%emt 0:12:56]} Ra7 {[%emt 0:01:09]} 33. Qb2 {[%emt 0:11:32]} Qb7 {[%emt 0:00:53]} 34. Qc3 {[%emt 0:00:54]} Kg8 {[%emt 0:01:52]} 35. Nxd6 {[%emt 0:00:51]} Qb1 36. Nc4 {[%emt 0:06:38]} Ra2 {[%emt 0:05:38]} 37. Qd3 {[%emt 0:02:39]} Qa1 {[%emt 0:07:02]} 38. Qe3 {[%emt 0:00:48]} Ng4 {[%emt 0:02:40]} 39. Qxe7 {[%emt 0:00:53]} Rxf2 {[%emt 0:00:41]} 40. Ne3 {[%emt 0:00:00]} Rf3 {[%emt 0:00:00]} 41. Qd8+ {[%emt 0:02:42]} Kg7 {[%emt 0:06:21]} 42. Nf5+ {[%emt 0:02:54]} gxf5 {[%emt 0:00:21]} 43. Qg5+ {[%emt 0:00:05]} Kh8 {[%emt 0:00:59]} 44. Qd8+ {[%emt 0:00:36]} Kg7 {[%emt 0:00:28]} 45. Qg5+ {[%emt 0:00:32]} Kh8 {[%emt 0:00:14]} 46. Qd8+ {[%emt 0:00:29]} Kg7 47. Qg5+ {[%emt 0:00:38]} Kf8 {[%emt 0:00:17]} 48. Qd8+ {[%emt 0:00:14]} Kg7 {[%emt 0:00:11]} 49. Qg5+ {[%emt 0:00:19]} Kh8 {[%emt 0:00:34]} 50. Qd8+ {[%emt 0:00:07]} Kg7 {[%emt 0:00:21]} 51. Qg5+ {[%emt 0:00:15]} Kf8 {[%emt 0:00:17]} 52. Qd8+ {[%emt 0:00:14]} Kg7 {[%emt 0:00:31]} 53. Qg5+ {[%emt 0:00:08]} Kf8 {[%emt 0:00:15]} 54. Qd8+ {[%emt 0:00:20]} Kg7 {[%emt 0:00:13]} 55. Qg5+ {[%emt 0:00:55]} Kf8 {[%emt 0:00:22]} 56. Qd8+ {[%emt 0:00:07]} 1/2-1/2

[Event "FIDE WCCC U8 2018"]
[Site "Santiago de Compostela"]
[Date "2018.11.11"]
[Round "7"]
[White "Udipi, Kala Kishan"]
[Black "Mammadov, Ziya"]
[Result "1-0"]
[ECO "D02"]
[WhiteElo "1653"]
[BlackElo "1446"]
[Annotator "NA RC"]
[PlyCount "99"]
[EventDate "2018.11.04"]
[EventType "swiss"]
[EventCountry "ESP"]
[SourceTitle "playchess.com"]
[Source "ChessBase"]
[SourceQuality "1"]
[TimeControl "40/5400+30:1800+30"]

1. d4 {[%emt 0:00:00]} d5 {[%emt 0:00:00]} 2. Nf3 {[%emt 0:00:00]} Nc6 {[%emt 0:00:00]} 3. Bf4 {[%emt 0:00:14]} Bg4 {[%emt 0:00:02]} 4. e3 {[%emt 0:00:16]} e6 {[%emt 0:00:06]} 5. Be2 {[%emt 0:00:08]} Bd6 {[%emt 0:00:17]} 6. Bxd6 {[%emt 0:01:07]} cxd6 {[%emt 0:00:14]} 7. c4 {[%emt 0:01:44]} Nge7 {[%emt 0:00:22]} 8. Nc3 {[%emt 0:00:33]} dxc4 {[%emt 0:01:02]} 9. Bxc4 {[%emt 0:00:38]} O-O {[%emt 0:00:09]} 10. O-O {[%emt 0:00:10]} Rc8 {[%emt 0:01:27]} 11. Bb3 {[%emt 0:00:18]} Ng6 {[%emt 0:00:22]} 12. h3 {[%emt 0:00:19]} Bxf3 {[%emt 0:03:13]} 13. Qxf3 {[%emt 0:01:18]} e5 {[%emt 0:00:28]} 14. d5 {[%emt 0:00:45]} Nce7 {[%emt 0:00:14]} 15. Ne4 {[%emt 0:00:56]} f5 {[%emt 0:01:29]} 16. Ng5 {[%emt 0:00:29]} Rf6 {[%emt 0:01:39]} 17. Qh5 {[%emt 0:02:21]} h6 {[%emt 0:02:02]} 18. Ne6 {[%emt 0:00:41]} Qd7 {[%emt 0:08:09]} 19. Rac1 {[%emt 0:10:13]} Nf8 {[%emt 0:09:13]} 20. Rc6 {[%emt 0:22:42]} bxc6 {[%emt 0:03:38]} 21. dxc6 {[%emt 0:00:17]} Qxe6 {[%emt 0:00:54]} 22. Bxe6+ {[%emt 0:00:13]} Nxe6 {[%emt 0:00:17]} 23. Rc1 {[%emt 0:01:12]} Nc5 {[%emt 0:00:24]} 24. Rc4 {[%emt 0:09:26]} Rf7 {[%emt 0:10:57]} 25. b4 {[%emt 0:01:00]} Ne4 {[%emt 0:04:28]} 26. a4 {[%emt 0:03:20]} d5 {[%emt 0:01:08]} 27. Rc2 {[%emt 0:01:15]} Rxc6 {[%emt 0:01:54]} 28. Rxc6 {[%emt 0:00:19]} Nxc6 {[%emt 0:00:11]} 29. b5 {[%emt 0:00:36]} Ne7 {[%emt 0:06:17]} 30. a5 {[%emt 0:04:01]} g6 {[%emt 0:01:27]} 31. Qd1 {[%emt 0:01:28]} Nc3 {[%emt 0:01:14]} 32. Qb3 {[%emt 0:03:41]} d4 {[%emt 0:22:45]} 33. b6 {[%emt 0:08:03]} Nc6 {[%emt 0:01:28]} 34. Qe6 {[%emt 0:16:14]} d3 {[%emt 0:01:22]} 35. bxa7 {[%emt 0:00:41]} Nxa7 {[%emt 0:00:53]} 36. Qe8+ {[%emt 0:00:35]} Rf8 {[%emt 0:00:30]} 37. Qxg6+ {[%emt 0:00:09]} Kh8 {[%emt 0:00:02]} 38. Qxh6+ {[%emt 0:00:11]} Kg8 {[%emt 0:00:07]} 39. Qg6+ {[%emt 0:00:00]} Kh8 {[%emt 0:00:00]} 40. Qd6 {[%emt 0:00:00]} Re8 {[%emt 0:00:00]} 41. Qxd3 {[%emt 0:04:32]} Nab5 {[%emt 0:01:28]} 42. Qd7 {[%emt 0:00:50]} Rf8 {[%emt 0:00:52]} 43. Qe7 {[%emt 0:00:26]} Rg8 {[%emt 0:00:18]} 44. Qxe5+ {[%emt 0:00:24]} Rg7 {[%emt 0:00:06]} 45. a6 {[%emt 0:00:32]} Ne2+ {[%emt 0:00:14]} 46. Kf1 {[%emt 0:00:30]} Nbc3 {[%emt 0:00:09]} 47. a7 {[%emt 0:00:18]} Kh7 {[%emt 0:00:03]} 48. a8=Q {[%emt 0:00:14]} Rd7 {[%emt 0:00:07]} 49. Qxf5+ {[%emt 0:00:12]} Kh6 {[%emt 0:00:06]} 50. Qh8+ {[%emt 0:00:19]} 1-0

[Event "FIDE WCCC U8 2018"]
[Site "Santiago de Compostela"]
[Date "2018.11.11"]
[Round "7"]
[White "Usov, Aleksandr E."]
[Black "Begmuratov, Khumoyun"]
[Result "0-1"]
[ECO "A59"]
[WhiteElo "1640"]
[BlackElo "1880"]
[Annotator "NA RC"]
[PlyCount "104"]
[EventDate "2018.11.04"]
[EventType "swiss"]
[EventCountry "ESP"]
[SourceTitle "playchess.com"]
[Source "ChessBase"]
[SourceQuality "1"]
[TimeControl "40/5400+30:1800+30"]

1. d4 {[%emt 0:00:06]} Nf6 {[%emt 0:00:00]} 2. c4 {[%emt 0:00:24]} c5 {[%emt 0:01:03]} 3. d5 {[%emt 0:00:30]} b5 {[%emt 0:00:30]} 4. cxb5 {[%emt 0:00:30]} a6 {[%emt 0:03:01]} 5. bxa6 {[%emt 0:00:05]} Bxa6 {[%emt 0:00:09]} 6. Nc3 {[%emt 0:00:25]} d6 {[%emt 0:00:06]} 7. g3 {[%emt 0:01:35]} g6 {[%emt 0:01:41]} 8. Nf3 {[%emt 0:01:23]} Bg7 {[%emt 0:00:39]} 9. e4 {[%emt 0:00:38]} Bxf1 {[%emt 0:00:12]} 10. Kxf1 {[%emt 0:00:21]} O-O {[%emt 0:00:14]} 11. Kg2 {[%emt 0:00:38]} Nbd7 {[%emt 0:00:09]} 12. Qe2 {[%emt 0:01:06]} Qb6 {[%emt 0:03:44]} 13. a4 {[%emt 0:18:48] A59: Benko/Volga Gambit: White castles by hand} Ra5 {[%emt 0:10:58]} (13... Rfb8 14. Nb5 Ne8 15. Bg5 Qd8 16. Ra3 Nb6 17. b3 Qd7 18. Ra2 f6 19. Bc1 f5 20. exf5 gxf5 {1-0 (40) Carlsen,M (2837)-Bologan,V (2732) Biel 2012 CBM 150 [Stohl,I]}) 14. Nd2 $146 {[%emt 0:00:30]} ({Predecessor:} 14. Bd2 Rfa8 15. b3 Ng4 16. Rab1 Nde5 17. Nb5 R5a6 18. Nxe5 Nxe5 19. Bc3 Rc8 20. f4 Nd7 21. Bxg7 Kxg7 {½-½ (51) Giraud,V (1991)-Denkert,R (1660) Magdeburg 2014}) 14... Qb7 {[%emt 0:00:30]} 15. Ra3 {[%emt 0:00:30]} Nb6 {[%emt 0:00:30]} 16. b3 {[%emt 0:00:30]} Nfd7 {[%emt 0:27:41]} 17. Nb5 {[%emt 0:15:40]} Rfa8 {[%emt 0:00:34]} 18. Nc4 {[%emt 0:10:46]} Nxc4 {[%emt 0:00:40]} 19. Qxc4 {[%emt 0:00:23]} f5 {[%emt 0:06:09]} 20. Re1 {[%emt 0:13:33]} Kh8 {[%emt 0:18:03]} 21. f3 {[%emt 0:13:47]} Ne5 {[%emt 0:10:16]} 22. Qe2 {[%emt 0:01:02]} c4 $1 {[%emt 0:02:12]} 23. bxc4 {[%emt 0:08:52]} fxe4 $1 $14 {[%emt 0:01:09]} (23... Qc8 {[%emt 0:01:02]}) 24. fxe4 $11 {[%emt 0:01:27]} Rxa4 {[%emt 0:00:23]} 25. Qa2 {[%emt 0:03:13]} (25. Rxa4 Rxa4) 25... Rxa3 {[%emt 0:00:18]} 26. Bxa3 {[%emt 0:00:18]} Qc8 {[%emt 0:00:42]} 27. Rf1 {[%emt 0:03:53]} Ra4 {[%emt 0:00:51]} 28. Rf2 {[%emt 0:01:55]} Nxc4 {[%emt 0:02:29]} 29. Qb3 {[%emt 0:00:45]} Ra8 {[%emt 0:01:25]} 30. Bb4 {[%emt 0:00:50]} Ne5 {[%emt 0:04:19]} 31. Bc3 {[%emt 0:00:27]} Qg4 {[%emt 0:01:27]} 32. Qc2 {[%emt 0:00:30]} Rc8 {[%emt 0:00:45]} 33. h3 {[%emt 0:00:34]} Qd7 {[%emt 0:00:27]} 34. Qc1 {[%emt 0:00:30]} Kg8 {[%emt 0:00:46]} 35. Qf1 {[%emt 0:00:23]} Nc4 {[%emt 0:01:31]} 36. Qb1 {[%emt 0:00:31]} Bxc3 {[%emt 0:00:41]} 37. Nxc3 {[%emt 0:00:06]} Ne3+ {[%emt 0:00:04]} 38. Kh2 {[%emt 0:00:39]} Rxc3 {[%emt 0:00:11]} 39. Qe1 {[%emt 0:00:42]} Qc8 {[%emt 0:00:32]} 40. Qe2 {[%emt 0:00:00]} Nc4 {[%emt 0:00:00]} 41. Qa2 {[%emt 0:02:06]} Ne5 {[%emt 0:00:49]} 42. Qa7 {[%emt 0:00:31]} Nf3+ {[%emt 0:00:34]} 43. Kg2 {[%emt 0:01:21]} Ng5 {[%emt 0:00:05]} 44. g4 {[%emt 0:02:49]} Nxh3 {[%emt 0:01:11]} 45. Kh2 {[%emt 0:01:46]} Nxf2 {[%emt 0:00:18]} 46. Qxf2 {[%emt 0:00:10]} Rc2 {[%emt 0:00:04]} 47. Qxc2 {[%emt 0:00:06]} Qxc2+ {[%emt 0:00:05]} 48. Kg3 {[%emt 0:00:20]} Qxe4 {[%emt 0:00:08]} 49. Kh4 {[%emt 0:00:12]} Kf7 {[%emt 0:00:37]} 50. Kg5 {[%emt 0:00:15]} Qe5+ {[%emt 0:00:30]} 51. Kh4 {[%emt 0:00:30]} Qh2+ {[%emt 0:00:30]} 52. Kg5 {[%emt 0:00:30]} h6# 0-1

[Event "FIDE WCCC U8 2018"]
[Site "Santiago de Compostela"]
[Date "2018.11.11"]
[Round "7"]
[White "Usov, Aleksandr E."]
[Black "Begmuratov, Khumoyun"]
[Result "1-0"]
[ECO "A59"]
[WhiteElo "1640"]
[BlackElo "1880"]
[Annotator "NA RC"]
[PlyCount "57"]
[EventDate "2018.11.04"]
[EventType "swiss"]
[EventCountry "ESP"]
[SourceTitle "playchess.com"]
[Source "ChessBase"]
[SourceQuality "1"]
[TimeControl "40/5400+30:1800+30"]

1. d4 {[%emt 0:00:06]} Nf6 {[%emt 0:00:00]} 2. c4 {[%emt 0:00:24]} c5 {[%emt 0:01:03]} 3. d5 {[%emt 0:00:30]} b5 {[%emt 0:00:30]} 4. cxb5 {[%emt 0:00:30]} a6 {[%emt 0:03:01]} 5. bxa6 {[%emt 0:00:05]} Bxa6 {[%emt 0:00:09]} 6. Nc3 {[%emt 0:00:25]} d6 {[%emt 0:00:06]} 7. g3 {[%emt 0:01:35]} g6 {[%emt 0:01:41]} 8. Nf3 {[%emt 0:01:23]} Bg7 {[%emt 0:00:39]} 9. e4 {[%emt 0:00:38]} Bxf1 {[%emt 0:00:12]} 10. Kxf1 {[%emt 0:00:21]} O-O {[%emt 0:00:14]} 11. Kg2 {[%emt 0:00:38]} Nbd7 {[%emt 0:00:09]} 12. Qe2 {[%emt 0:01:06]} Qb6 {[%emt 0:03:44]} 13. a4 {[%emt 0:18:48] A59: Benko/Volga Gambit: White castles by hand} Ra5 {[%emt 0:10:58]} (13... Rfb8 14. Nb5 Ne8 15. Bg5 Qd8 16. Ra3 Nb6 17. b3 Qd7 18. Ra2 f6 19. Bc1 f5 20. exf5 gxf5 {1-0 (40) Carlsen,M (2837)-Bologan,V (2732) Biel 2012 CBM 150 [Stohl,I]}) 14. Nd2 $146 {[%emt 0:00:30]} ({Predecessor:} 14. Bd2 Rfa8 15. b3 Ng4 16. Rab1 Nde5 17. Nb5 R5a6 18. Nxe5 Nxe5 19. Bc3 Rc8 20. f4 Nd7 21. Bxg7 Kxg7 {½-½ (51) Giraud,V (1991)-Denkert,R (1660) Magdeburg 2014}) 14... Qb7 {[%emt 0:00:30]} 15. Ra3 {[%emt 0:00:30]} Nb6 {[%emt 0:00:30]} 16. b3 {[%emt 0:00:30]} Nfd7 {[%emt 0:27:41]} 17. Nb5 {[%emt 0:15:40]} Rfa8 {[%emt 0:00:34]} 18. Nc4 {[%emt 0:10:46]} Nxc4 {[%emt 0:00:40]} 19. Qxc4 {[%emt 0:00:23]} f5 {[%emt 0:06:09]} 20. Re1 {[%emt 0:13:33]} Kh8 {[%emt 0:18:03]} 21. f3 {[%emt 0:13:47]} Ne5 {[%emt 0:10:16]} 22. Qe2 {[%emt 0:01:02]} c4 $1 {[%emt 0:02:12]} 23. bxc4 {[%emt 0:08:52]} Qc8 {[%emt 0:01:02]} (23... fxe4 $1 $14 24. fxe4 Rxa4 25. Rxa4 Rxa4) 24. Rf1 $11 {[%emt 0:07:21]} ({White should try} 24. exf5 $16 Rxa4 25. Rxa4 Rxa4 26. f4 Nxc4 27. Qxe7 Qxf5 28. Qe8+ (28. Nxd6 Qxd5+ 29. Ne4 Ra2+ 30. Kh3 Qh5+ 31. Qh4 Qf5+ 32. g4 Qd5 $11) 28... Qf8 29. Na3 Qxe8 30. Rxe8+ Bf8 31. Rxf8+ Kg7 32. Rd8 Nxa3 33. Rxd6) 24... Rxa4 {[%emt 0:00:30]} 25. Qa2 {[%emt 0:00:30]} Rxa3 {[%emt 0:00:30]} 26. Bxa3 {[%emt 0:00:30]} Ra4 {[%emt 0:00:51]} 27. Rf2 {[%emt 0:01:55]} Nxc4 {[%emt 0:02:29]} 28. Qb3 {[%emt 0:00:45]} Ra8 {[%emt 0:01:25]} 29. Bb4 {[%emt 0:00:50]} 1-0

[Event "FIDE WCCC U8 2018"]
[Site "Santiago de Compostela"]
[Date "2018.11.11"]
[Round "7"]
[White "Mamedov, Edgar"]
[Black "Chen, Zhiyuan"]
[Result "1-0"]
[ECO "A48"]
[WhiteElo "1599"]
[BlackElo "1459"]
[Annotator "NA RC"]
[PlyCount "129"]
[EventDate "2018.11.04"]
[EventType "swiss"]
[EventCountry "ESP"]
[SourceTitle "playchess.com"]
[Source "ChessBase"]
[SourceQuality "1"]
[TimeControl "40/5400+30:1800+30"]

1. d4 {[%emt 0:00:12]} Nf6 {[%emt 0:00:00]} 2. Nf3 {[%emt 0:00:28]} g6 {[%emt 0:00:00]} 3. Bf4 {[%emt 0:01:03]} Bg7 {[%emt 0:00:09]} 4. e3 {[%emt 0:00:16]} O-O {[%emt 0:00:12]} 5. h3 {[%emt 0:00:44]} d5 {[%emt 0:00:17]} 6. Nbd2 {[%emt 0:00:27]} c5 {[%emt 0:02:24]} 7. c3 {[%emt 0:00:21]} cxd4 {[%emt 0:01:37]} 8. exd4 {[%emt 0:00:31]} Nc6 {[%emt 0:00:52]} 9. Be2 {[%emt 0:01:55]} h6 {[%emt 0:04:01]} 10. O-O {[%emt 0:00:54]} Ne4 {[%emt 0:00:21]} 11. Re1 {[%emt 0:02:39]} f5 {[%emt 0:01:02]} 12. Bf1 {[%emt 0:01:03]} e6 {[%emt 0:03:16]} 13. Qc2 {[%emt 0:10:25]} Bd7 {[%emt 0:01:32]} 14. Rad1 {[%emt 0:03:54]} Qb6 {[%emt 0:01:57]} 15. Qb3 {[%emt 0:01:33]} Qxb3 {[%emt 0:12:19]} 16. Nxb3 {[%emt 0:01:13]} g5 {[%emt 0:01:04]} 17. Bh2 {[%emt 0:05:32]} b6 {[%emt 0:17:19]} 18. Nc1 {[%emt 0:02:25]} Kh7 {[%emt 0:00:54]} 19. Nd2 {[%emt 0:05:18]} h5 {[%emt 0:04:44]} 20. f3 {[%emt 0:02:07]} Nf6 {[%emt 0:00:39]} 21. Nd3 {[%emt 0:02:55]} f4 {[%emt 0:05:41]} 22. h4 {[%emt 0:02:12]} Bh6 {[%emt 0:01:30]} 23. hxg5 {[%emt 0:02:31]} Bxg5 {[%emt 0:00:07]} 24. Bxf4 {[%emt 0:00:55]} Bxf4 {[%emt 0:00:27]} 25. Nxf4 {[%emt 0:00:13]} Rae8 {[%emt 0:03:06]} 26. Bd3+ {[%emt 0:02:43]} Kh6 {[%emt 0:00:15]} 27. g3 {[%emt 0:06:45]} Rg8 {[%emt 0:02:55]} 28. Kf2 {[%emt 0:01:42]} e5 {[%emt 0:03:00]} 29. dxe5 {[%emt 0:01:14]} Nxe5 {[%emt 0:00:10]} 30. Nb3 {[%emt 0:01:42]} Nxf3 {[%emt 0:06:11]} 31. Rxe8 {[%emt 0:00:33]} Rxe8 {[%emt 0:00:07]} 32. Be2 {[%emt 0:00:19]} Ng5 {[%emt 0:03:31]} 33. Nxh5 {[%emt 0:09:39]} Nxh5 {[%emt 0:03:50]} 34. Rxd5 {[%emt 0:00:37]} Bc6 {[%emt 0:02:26]} 35. Rd6+ {[%emt 0:02:09]} Re6 {[%emt 0:00:02]} 36. Rxe6+ {[%emt 0:01:13]} Nxe6 {[%emt 0:00:07]} 37. Bg4 Nc7 38. Nd4 {[%emt 0:06:09]} Be4 {[%emt 0:04:21]} 39. c4 {[%emt 0:06:47]} Kg5 {[%emt 0:02:37]} 40. Bc8 {[%emt 0:00:00]} Nf6 {[%emt 0:00:00]} 41. Ke3 {[%emt 0:07:34]} Bb1 {[%emt 0:07:48]} 42. Nf3+ {[%emt 0:01:17]} Kg6 {[%emt 0:00:49]} 43. a3 {[%emt 0:00:11]} Ne4 {[%emt 0:13:36]} 44. Kf4 {[%emt 0:04:58]} Nc5 {[%emt 0:01:52]} 45. b4 {[%emt 0:10:38]} Nd3+ {[%emt 0:07:12]} 46. Ke3 {[%emt 0:00:40]} Nb2 {[%emt 0:01:50]} 47. Kd4 {[%emt 0:03:48]} Kf6 {[%emt 0:02:10]} 48. Ne5 {[%emt 0:03:48]} Ne6+ {[%emt 0:01:26]} 49. Bxe6 {[%emt 0:00:55]} Kxe6 {[%emt 0:00:05]} 50. b5 {[%emt 0:00:21]} Ba2 {[%emt 0:01:40]} 51. g4 {[%emt 0:02:11]} Kf6 {[%emt 0:03:31]} 52. Nd7+ {[%emt 0:01:04]} Ke7 {[%emt 0:00:54]} 53. Ne5 {[%emt 0:00:28]} Kf6 {[%emt 0:00:09]} 54. Kd5 {[%emt 0:01:10]} Bb3 {[%emt 0:00:22]} 55. Kd4 {[%emt 0:00:54]} Ba2 {[%emt 0:00:06]} 56. Nc6 {[%emt 0:01:54]} Nxc4 {[%emt 0:00:18]} 57. Nxa7 {[%emt 0:00:26]} Nxa3 {[%emt 0:00:06]} 58. Nc8 {[%emt 0:00:36]} Nxb5+ {[%emt 0:00:25]} 59. Kd3 {[%emt 0:00:09]} Be6 {[%emt 0:00:42]} 60. Nxb6 {[%emt 0:00:17]} Bxg4 {[%emt 0:00:08]} 61. Nc4 {[%emt 0:00:13]} Bf5+ {[%emt 0:00:15]} 62. Ke3 {[%emt 0:00:25]} Be6 {[%emt 0:00:15]} 63. Nd2 {[%emt 0:00:10]} Bd5 {[%emt 0:00:31]} 64. Nf3 {[%emt 0:00:38]} Bxf3 {[%emt 0:00:41]} 65. Kxf3 1-0

[Event "FIDE WCCC U8 2018"]
[Site "Santiago de Compostela"]
[Date "2018.11.11"]
[Round "7"]
[White "Chennareddy, Yuvraj"]
[Black "Golovchenko, Bogdan"]
[Result "1-0"]
[ECO "B31"]
[WhiteElo "1497"]
[BlackElo "1556"]
[Annotator "NA RC"]
[PlyCount "209"]
[EventDate "2018.11.04"]
[EventType "swiss"]
[EventCountry "ESP"]
[SourceTitle "playchess.com"]
[Source "ChessBase"]
[SourceQuality "1"]
[TimeControl "40/5400+30:1800+30"]

1. e4 {[%emt 0:00:00]} c5 {[%emt 0:00:00]} 2. Nf3 {[%emt 0:00:00]} Nc6 {[%emt 0:00:02]} 3. Bb5 {[%emt 0:00:13]} g6 {[%emt 0:00:28]} 4. O-O {[%emt 0:03:19]} Bg7 {[%emt 0:00:21]} 5. Re1 {[%emt 0:00:47]} Nf6 {[%emt 0:01:41]} 6. e5 {[%emt 0:00:54]} Nd5 {[%emt 0:00:52]} 7. Nc3 {[%emt 0:01:24]} Nxc3 {[%emt 0:00:49]} 8. dxc3 {[%emt 0:00:15]} O-O {[%emt 0:01:11]} 9. Bg5 {[%emt 0:00:47]} Re8 {[%emt 0:05:38]} 10. Rb1 Qa5 {[%emt 0:08:54]} 11. Bc4 {[%emt 0:26:49]} b5 {[%emt 0:01:37]} 12. Bd5 {[%emt 0:00:52]} Qc7 {[%emt 0:02:21]} 13. Qe2 {[%emt 0:08:11]} a6 {[%emt 0:02:59]} 14. Qe3 {[%emt 0:01:15]} c4 {[%emt 0:04:00]} 15. Bh6 {[%emt 0:02:21]} Bb7 {[%emt 0:09:29]} 16. Bxg7 {[%emt 0:00:38]} Kxg7 {[%emt 0:00:02]} 17. Qf4 {[%emt 0:07:09]} Nd8 {[%emt 0:01:13]} 18. Rbd1 {[%emt 0:02:56]} Bxd5 {[%emt 0:08:31]} 19. Rxd5 {[%emt 0:00:12]} Ne6 {[%emt 0:00:14]} 20. Qd2 {[%emt 0:00:05]} Red8 {[%emt 0:01:41]} 21. Rd1 {[%emt 0:00:27]} Ra7 {[%emt 0:01:21]} 22. Qe3 {[%emt 0:02:44]} Rb7 {[%emt 0:05:20]} 23. Nd4 {[%emt 0:01:30]} Nxd4 {[%emt 0:12:56]} 24. R5xd4 {[%emt 0:08:35]} Qc5 {[%emt 0:06:18]} 25. Qe4 {[%emt 0:00:22]} Rc7 {[%emt 0:01:31]} 26. Rd5 {[%emt 0:00:33]} Qc6 {[%emt 0:00:30]} 27. Qd4 {[%emt 0:00:29]} Qe6 {[%emt 0:01:55]} 28. Rd6 {[%emt 0:02:26]} Qf5 {[%emt 0:03:48]} 29. e6+ {[%emt 0:02:39]} Qf6 {[%emt 0:02:59]} 30. Rxd7 {[%emt 0:04:47]} Qxd4 {[%emt 0:00:35]} 31. R1xd4 {[%emt 0:00:20]} Rcxd7 {[%emt 0:00:14]} 32. Rxd7 {[%emt 0:00:11]} Re8 {[%emt 0:00:07]} 33. exf7 {[%emt 0:00:35]} Kxf7 {[%emt 0:00:01]} 34. Kf1 {[%emt 0:00:31]} Ra8 {[%emt 0:00:11]} 35. Ke2 Ke6 {[%emt 0:00:16]} 36. Rb7 {[%emt 0:00:29]} Rd8 {[%emt 0:00:33]} 37. Rb6+ {[%emt 0:00:20]} Rd6 {[%emt 0:00:02]} 38. Rb8 {[%emt 0:01:42]} h5 {[%emt 0:00:10]} 39. Rc8 {[%emt 0:00:18]} Kf5 {[%emt 0:00:34]} 40. Rc5+ {[%emt 0:00:00]} e5 {[%emt 0:00:00]} 41. a4 {[%emt 0:01:46]} bxa4 {[%emt 0:00:45]} 42. Rxc4 {[%emt 0:00:09]} Rb6 {[%emt 0:01:29]} 43. Rb4 {[%emt 0:00:07]} Rb5 {[%emt 0:00:01]} 44. h4 {[%emt 0:01:15]} e4 {[%emt 0:00:30]} 45. Ke3 {[%emt 0:00:25]} Ra5 {[%emt 0:00:33]} 46. Rxe4 {[%emt 0:00:19]} a3 {[%emt 0:00:07]} 47. bxa3 {[%emt 0:00:35]} Rxa3 {[%emt 0:00:01]} 48. Rc4 {[%emt 0:01:37]} a5 {[%emt 0:00:34]} 49. f3 {[%emt 0:00:21]} Ra1 {[%emt 0:00:30]} 50. g4+ {[%emt 0:00:50]} hxg4 {[%emt 0:00:30]} 51. fxg4+ {[%emt 0:00:07]} Ke5 {[%emt 0:00:24]} 52. Rc6 {[%emt 0:00:32]} a4 {[%emt 0:00:10]} 53. Rxg6 {[%emt 0:01:38]} a3 {[%emt 0:00:01]} 54. Ra6 {[%emt 0:00:12]} a2 {[%emt 0:00:06]} 55. Kd2 {[%emt 0:00:10]} Kf4 {[%emt 0:01:21]} 56. Ra4+ {[%emt 0:00:08]} Ke5 {[%emt 0:00:09]} 57. h5 {[%emt 0:01:35]} Kf6 {[%emt 0:00:10]} 58. Ra5 {[%emt 0:00:06]} Rg1 {[%emt 0:01:04]} 59. Rxa2 {[%emt 0:00:11]} Rxg4 {[%emt 0:00:02]} 60. h6 {[%emt 0:00:32]} Rh4 {[%emt 0:00:17]} 61. Kc1 {[%emt 0:02:05]} Ke5 {[%emt 0:00:25]} 62. Ra5+ {[%emt 0:00:19]} Kd6 {[%emt 0:00:08]} 63. Kb2 {[%emt 0:00:22]} Kc6 {[%emt 0:00:07]} 64. Ra6+ {[%emt 0:00:21]} Kb5 {[%emt 0:00:05]} 65. Rg6 {[%emt 0:00:12]} Kc4 {[%emt 0:00:24]} 66. Rc6+ {[%emt 0:01:31]} Kb5 {[%emt 0:00:12]} 67. Rg6 {[%emt 0:00:39]} Kc4 {[%emt 0:00:03]} 68. Rf6 {[%emt 0:00:10]} Kb5 {[%emt 0:00:06]} 69. Kb3 {[%emt 0:00:16]} Rb4+ {[%emt 0:00:04]} 70. Ka3 {[%emt 0:01:21]} Ra4+ {[%emt 0:00:03]} 71. Kb2 {[%emt 0:00:13]} Rh4 {[%emt 0:00:07]} 72. h7 {[%emt 0:00:10]} Rxh7 {[%emt 0:00:05]} 73. Kb3 {[%emt 0:00:07]} Rh5 {[%emt 0:00:44]} 74. c4+ {[%emt 0:00:43]} Kc5 {[%emt 0:00:35]} 75. Rf8 {[%emt 0:00:10]} Rh3+ {[%emt 0:00:54]} 76. c3 {[%emt 0:00:13]} Rh1 {[%emt 0:00:06]} 77. Rc8+ {[%emt 0:00:15]} Kb6 {[%emt 0:00:25]} 78. c5+ {[%emt 0:00:34]} Kb7 {[%emt 0:00:05]} 79. Rd8 {[%emt 0:00:09]} Kc6 {[%emt 0:00:15]} 80. Kc4 {[%emt 0:00:08]} Rh4+ {[%emt 0:00:06]} 81. Rd4 {[%emt 0:00:06]} Rh5 {[%emt 0:00:26]} 82. Rd6+ {[%emt 0:00:05]} Kc7 {[%emt 0:00:08]} 83. Kb5 {[%emt 0:00:55]} Rh1 {[%emt 0:00:15]} 84. Rd4 {[%emt 0:00:10]} Rh3 {[%emt 0:00:31]} 85. Rc4 {[%emt 0:01:05]} Rh1 {[%emt 0:00:28]} 86. c6 {[%emt 0:00:08]} Rb1+ {[%emt 0:00:10]} 87. Kc5 {[%emt 0:00:41]} Rb6 {[%emt 0:00:29]} 88. Kd5 {[%emt 0:00:14]} Rb5+ {[%emt 0:00:06]} 89. Rc5 {[%emt 0:00:05]} Rb1 {[%emt 0:00:09]} 90. Ra5 {[%emt 0:04:20]} Kb6 {[%emt 0:00:55]} 91. Ra4 {[%emt 0:00:57]} Rd1+ {[%emt 0:00:56]} 92. Rd4 {[%emt 0:00:06]} Rh1 {[%emt 0:00:08]} 93. Rb4+ {[%emt 0:00:51]} Kc7 {[%emt 0:00:18]} 94. Rb7+ {[%emt 0:01:04]} Kc8 {[%emt 0:00:08]} 95. Kc5 {[%emt 0:00:13]} Rc1 {[%emt 0:02:07]} 96. c4 {[%emt 0:00:29]} Rd1 {[%emt 0:00:11]} 97. Rd7 {[%emt 0:01:08]} Rb1 {[%emt 0:00:10]} 98. Rh7 {[%emt 0:03:23]} Rd1 {[%emt 0:01:00]} 99. c7 {[%emt 0:00:44]} Rc1 {[%emt 0:01:01]} 100. Kd6 {[%emt 0:01:29]} Kb7 {[%emt 0:01:07]} 101. Rh5 {[%emt 0:04:48]} Kc8 {[%emt 0:01:06]} 102. Rh8+ {[%emt 0:00:39]} Kb7 {[%emt 0:00:04]} 103. c8=Q+ {[%emt 0:00:11]} Kb6 {[%emt 0:00:04]} 104. Qc7+ {[%emt 0:00:14]} Ka6 {[%emt 0:00:03]} 105. Ra8# {[%emt 0:00:09]} 1-0